fUSD/lending_fUSD_20250125
["ID","MTS","AMOUNT","RATE_DAILY","PERIOD"]
[350360260,1737813079883,-500.0,0.0001726,2]
[350360261,1737813079896,-500.0,0.0001726,2]
[350360262,1737813079906,-500.0,0.0001726,2]
[350360263,1737813079915,-760.92,0.0001726,2]
[350360264,1737813079925,-500.0,0.0001726,2]
[350360265,1737813079935,-500.0,0.0001726,2]
[350360266,1737813079944,-1375.09,0.0001726,2]
[350360267,1737813079954,-772.61,0.0001726,2]
[350360268,1737813079963,-500.0,0.0001726,2]
[350360269,1737813079976,-876.13,0.0001726,2]
[350360270,1737813079986,-537.57,0.0001726,2]
[350360271,1737813079995,-500.0,0.0001726,2]
[350360272,1737813080005,-568.9,0.0001726,2]
[350360273,1737813080014,-2395.84,0.0001726,2]
[350360274,1737813080023,-511.05826176,0.0001726,2]
[350360275,1737813080033,-1063.43,0.0001726,2]
[350360276,1737813080043,-500.0,0.0001726,2]
[350360277,1737813080052,-500.0,0.0001726,2]
[350360278,1737813080062,-500.0,0.0001726,2]
[350360279,1737813080071,-2460.08,0.0001726,2]
[350360280,1737813080080,-500.0,0.0001726,2]
[350360281,1737813080090,-507.28814852,0.0001726,2]
[350360282,1737813080099,-689.97,0.0001726,2]
[350360283,1737813080108,-740.0,0.0001726,2]
[350360284,1737813080118,-500.0,0.0001726,2]
[350360285,1737813080127,-500.0,0.0001726,2]
[350360286,1737813080136,-500.0,0.0001726,2]
[350360287,1737813080146,-500.0,0.0001726,2]
[350360288,1737813080155,-510.12625669,0.0001726,2]
[350360289,1737813080164,-500.0,0.0001726,2]
[350360290,1737813080173,-500.0,0.0001726,2]
[350360291,1737813080182,-667.16,0.0001726,2]
[350360292,1737813080192,-500.0,0.0001726,2]
[350360293,1737813080202,-706.71,0.0001726,2]
[350360294,1737813080211,-500.0,0.0001726,2]
[350360295,1737813080220,-1131.23,0.0001726,2]
[350360296,1737813080230,-1416.08,0.0001726,2]
[350360297,1737813080239,-500.0,0.0001726,2]
[350360298,1737813080249,-800.38,0.0001726,2]
[350360299,1737813080259,-500.0,0.0001726,2]
[350360300,1737813080268,-500.0,0.0001726,2]
[350360301,1737813080278,-500.0,0.0001726,2]
[350360302,1737813080287,-500.0,0.0001726,2]
[350360303,1737813080297,-500.0,0.0001726,2]
[350360304,1737813080306,-842.21,0.0001726,2]
[350360305,1737813080315,-500.0,0.0001726,2]
[350360306,1737813080324,-599.36,0.0001726,2]
[350360307,1737813080333,-500.0,0.0001726,2]
[350360308,1737813080344,-500.0,0.0001726,2]
[350360309,1737813080353,-500.0,0.0001726,2]
[350360310,1737813080363,-500.0,0.0001726,2]
[350360311,1737813080372,-732.46,0.0001726,2]
[350360312,1737813080382,-1308.92,0.0001726,2]
[350360313,1737813080391,-500.0,0.0001726,2]
[350360314,1737813080400,-500.0,0.0001726,2]
[350360315,1737813080409,-500.0,0.0001726,2]
[350360316,1737813080419,-1000.0,0.0001726,2]
[350360317,1737813080428,-550.65888731,0.0001726,2]
[350360318,1737813080438,-500.0,0.0001726,2]
[350360319,1737813080448,-2319.73,0.0001726,2]
[350360320,1737813080458,-687.95,0.0001726,2]
[350360321,1737813080467,-500.0,0.0001726,2]
[350360322,1737813080476,-500.0,0.0001726,2]
[350360323,1737813080486,-924.66,0.0001726,2]
[350360324,1737813080495,-500.0,0.0001726,2]
[350360325,1737813080504,-500.0,0.0001726,2]
[350360326,1737813080513,-500.0,0.0001726,2]
[350360327,1737813080523,-1116.95,0.0001726,2]
[350360328,1737813080532,-500.0,0.0001726,2]
[350360329,1737813080542,-500.0,0.0001726,2]
[350360330,1737813080551,-528.29,0.0001726,2]
[350360331,1737813080560,-517.43,0.0001726,2]
[350360332,1737813080570,-500.0,0.0001726,2]
[350360333,1737813080580,-500.0,0.0001726,2]
[350360334,1737813080590,-621.51,0.0001726,2]
[350360335,1737813080599,-500.0,0.0001726,2]
[350360336,1737813080608,-534.07,0.0001726,2]
[350360337,1737813080618,-500.0,0.0001726,2]
[350360338,1737813080627,-500.0,0.0001726,2]
[350360339,1737813080636,-500.0,0.0001726,2]
[350360340,1737813080645,-500.0,0.0001726,2]
[350360341,1737813080654,-210.39555764,0.0001726,2]
[350360342,1737813080663,-591.54,0.0001726,2]
[350360343,1737813080673,-815.81,0.0001726,2]
[350360344,1737813080683,-500.0,0.0001726,2]
[350360345,1737813080693,-700.4,0.0001726,2]
[350360346,1737813080703,-500.0,0.0001726,2]
[350360347,1737813080712,-500.0,0.0001726,2]
[350360348,1737813080721,-2623.3403566,0.00017348,2]
[350360349,1737813080729,-1117.85,0.00017396,2]
[350360350,1737813080739,-2342.33,0.00017396,2]
[350360351,1737813080747,-500.0,0.00017397,2]
[350360352,1737813080757,-500.0,0.00017397,2]
[350360353,1737813080766,-373.18573234,0.00017397,2]
[350360354,1737813080775,-500.0,0.00017397,2]
[350360355,1737813080784,-266.31290788,0.00017397,2]
[350360356,1737813080793,-500.0,0.00017397,2]
[350360357,1737813080802,-500.0,0.00017397,2]
[350360358,1737813080812,-500.0,0.00017397,2]
[350360359,1737813080820,-413.96641991,0.00017397,2]
[350360360,1737813080829,-547.974536,0.00017397,2]
[350360361,1737813080838,-500.0,0.00017397,2]
[350360362,1737813080847,-602.38,0.00017397,2]
[350360363,1737813080857,-376.945656,0.00017397,2]
[350360364,1737813080866,-500.0,0.00017397,2]
[350360365,1737813080874,-500.0,0.00017397,2]
[350360366,1737813080883,-500.0,0.00017397,2]
[350360367,1737813080897,-500.0,0.00017397,2]
[350360368,1737813080906,-500.0,0.00017397,2]
[350360369,1737813080915,-500.0,0.00017397,2]
[350360370,1737813080923,-500.0,0.00017397,2]
[350360371,1737813080934,-500.0,0.00017397,2]
[350360372,1737813080943,-500.0,0.00017397,2]
[350360373,1737813080952,-500.0,0.00017397,2]
[350360374,1737813080961,-500.0,0.00017397,2]
[350360375,1737813080971,-500.0,0.00017397,2]
[350360376,1737813080982,-500.0,0.00017397,2]
[350360377,1737813080991,-500.0,0.00017397,2]
[350360378,1737813081000,-518.92446398,0.00017397,2]
[350360379,1737813081009,-500.0,0.00017397,2]
[350360380,1737813081018,-500.0,0.00017397,2]
[350360381,1737813081028,-500.0,0.00017397,2]
[350360382,1737813081037,-500.0,0.00017397,2]
[350360383,1737813081046,-500.0,0.00017397,2]
[350360384,1737813081055,-500.0,0.00017397,2]
[350360385,1737813081064,-500.0,0.00017397,2]
[350360386,1737813081074,-500.0,0.00017397,2]
[350360387,1737813081083,-500.0,0.00017397,2]
[350360388,1737813081092,-500.0,0.00017397,2]
[350360389,1737813081101,-500.0,0.00017397,2]
[350360390,1737813081110,-548.14667552,0.00017397,2]
[350360391,1737813081119,-500.0,0.00017397,2]
[350360392,1737813081127,-500.0,0.00017397,2]
[350360393,1737813081136,-500.0,0.00017397,2]
[350360394,1737813081145,-500.0,0.00017397,2]
[350360395,1737813081154,-500.0,0.00017397,2]
[350360396,1737813081163,-500.0,0.00017397,2]
[350360397,1737813081173,-500.0,0.00017397,2]
[350360398,1737813081183,-500.0,0.00017397,2]
[350360399,1737813081193,-500.0,0.00017397,2]
[350360400,1737813081203,-500.0,0.00017397,2]
[350360401,1737813081212,-500.0,0.00017397,2]
[350360402,1737813081222,-500.0,0.00017397,2]
[350360403,1737813081231,-500.0,0.00017397,2]
[350360404,1737813081242,-500.0,0.00017397,2]
[350360405,1737813081251,-500.0,0.00017397,2]
[350360406,1737813081260,-500.0,0.00017397,2]
[350360407,1737813081270,-500.0,0.00017397,2]
[350360408,1737813081279,-500.0,0.00017397,2]
[350360409,1737813081288,-547.27544736,0.00017397,2]
[350360410,1737813081297,-500.0,0.00017397,2]
[350360411,1737813081306,-571.14,0.00017397,2]
[350360412,1737813081315,-500.0,0.00017397,2]
[350360413,1737813081459,-500.0,0.00017397,2]
[350360414,1737813081468,-500.0,0.00017397,2]
[350360415,1737813081477,-500.0,0.00017397,2]
[350360416,1737813081487,-500.0,0.00017397,2]
[350360417,1737813081496,-500.0,0.00017397,2]
[350360418,1737813081506,-500.0,0.00017397,2]
[350360419,1737813081516,-500.0,0.00017397,2]
[350360420,1737813081526,-500.0,0.00017397,2]
[350360421,1737813081535,-500.0,0.00017397,2]
[350360422,1737813081545,-533.46,0.00017397,2]
[350360423,1737813081554,-515.62847643,0.00017397,2]
[350360424,1737813081564,-500.0,0.00017397,2]
[350360425,1737813081574,-521.5638446,0.00017397,2]
[350360426,1737813081584,-500.0,0.00017397,2]
[350360427,1737813081593,-533.48,0.00017397,2]
[350360428,1737813081602,-500.0,0.00017397,2]
[350360429,1737813081612,-500.0,0.00017397,2]
[350360430,1737813081622,-500.0,0.00017397,2]
[350360431,1737813081632,-500.0,0.00017397,2]
[350360432,1737813081641,-500.0,0.00017397,2]
[350360433,1737813081651,-500.0,0.00017397,2]
[350360434,1737813081661,-500.0,0.00017397,2]
[350360435,1737813081670,-500.0,0.00017397,2]
[350360436,1737813081680,-500.0,0.00017397,2]
[350360437,1737813081690,-500.0,0.00017397,2]
[350360438,1737813081701,-198.932043,0.00017397,2]
[350360439,1737813081711,-500.0,0.00017397,2]
[350360440,1737813081720,-500.0,0.00017397,2]
[350360441,1737813081730,-500.0,0.00017397,2]
[350360442,1737813081740,-500.0,0.00017397,2]
[350360443,1737813081749,-500.0,0.00017397,2]
[350360444,1737813081759,-500.0,0.00017397,2]
[350360445,1737813081768,-500.0,0.00017397,2]
[350360446,1737813081777,-500.0,0.00017397,2]
[350360447,1737813081787,-500.0,0.00017397,2]
[350360448,1737813081796,-500.0,0.00017397,2]
[350360449,1737813081806,-500.0,0.00017397,2]
[350360450,1737813081815,-500.0,0.00017397,2]
[350360451,1737813081825,-500.0,0.00017397,2]
[350360452,1737813081835,-500.0,0.00017397,2]
[350360453,1737813081844,-500.0,0.00017397,2]
[350360454,1737813081854,-500.0,0.00017397,2]
[350360455,1737813081864,-500.0,0.00017397,2]
[350360456,1737813081874,-500.0,0.00017397,2]
[350360457,1737813081884,-500.0,0.00017397,2]
[350360458,1737813081898,-500.0,0.00017397,2]
[350360459,1737813081907,-500.0,0.00017397,2]
[350360460,1737813081918,-500.0,0.00017397,2]
[350360461,1737813081928,-500.0,0.00017397,2]
[350360462,1737813081938,-500.0,0.00017397,2]
[350360463,1737813081948,-500.0,0.00017397,2]
[350360464,1737813081958,-500.0,0.00017397,2]
[350360465,1737813081969,-1889.73,0.00017397,2]
[350360466,1737813081979,-500.0,0.00017397,2]
[350360467,1737813081989,-665.28,0.00017397,2]
[350360468,1737813081999,-199.64688495,0.00017397,2]
[350360469,1737813082008,-789.58,0.00017397,2]
[350360470,1737813082019,-500.0,0.00017397,2]
[350360471,1737813082029,-541.55,0.00017397,2]
[350360472,1737813082040,-500.0,0.00017397,2]
[350360473,1737813082052,-500.0,0.00017397,2]
[350360474,1737813082063,-500.0,0.00017397,2]
[350360475,1737813082072,-500.0,0.00017397,2]
[350360476,1737813082081,-1330.19,0.00017397,2]
[350360477,1737813082090,-500.0,0.00017397,2]
[350360478,1737813082100,-500.0,0.00017397,2]
[350360479,1737813082110,-500.0,0.00017397,2]
[350360480,1737813082119,-500.0,0.00017397,2]
[350360481,1737813082129,-744.86,0.00017397,2]
[350360482,1737813082139,-500.0,0.00017397,2]
[350360483,1737813082148,-500.0,0.00017397,2]
[350360484,1737813082158,-500.0,0.00017397,2]
[350360485,1737813082167,-770.24,0.00017397,2]
[350360486,1737813082176,-629.5047033,0.00017397,2]
[350360487,1737813082185,-500.0,0.00017397,2]
[350360488,1737813082194,-1531.48,0.00017397,2]
[350360489,1737813082204,-500.0,0.00017397,2]
[350360490,1737813082214,-500.0,0.00017397,2]
[350360491,1737813082224,-2865.43,0.00017397,2]
[350360492,1737813082234,-500.0,0.00017397,2]
[350360493,1737813082243,-716.83,0.00017397,2]
[350360494,1737813082252,-500.0,0.00017397,2]
[350360495,1737813082262,-500.0,0.00017397,2]
[350360496,1737813082272,-500.0,0.00017397,2]
[350360497,1737813082281,-643.17,0.00017397,2]
[350360498,1737813082291,-609.94,0.00017397,2]
[350360499,1737813082300,-1101.23,0.00017397,2]
[350360500,1737813082310,-500.0,0.00017397,2]
[350360501,1737813082320,-500.0,0.00017397,2]
[350360502,1737813082329,-500.0,0.00017397,2]
[350360503,1737813082338,-1583.89,0.00017397,2]
[350360504,1737813082347,-782.83,0.00017397,2]
[350360505,1737813082356,-760.48,0.00017397,2]
[350360506,1737813082366,-500.0,0.00017397,2]
[350360507,1737813082375,-1381.24,0.00017397,2]
[350360508,1737813082384,-500.0,0.00017397,2]
[350360509,1737813082393,-2726.15,0.00017397,2]
[350360510,1737813082403,-766.47,0.00017397,2]
[350360511,1737813082412,-578.7,0.00017397,2]
[350360512,1737813082422,-500.0,0.00017397,2]
[350360513,1737813082431,-2076.9,0.00017397,2]
[350360514,1737813082440,-570.43,0.00017397,2]
[350360515,1737813082450,-938.06,0.00017397,2]
[350360516,1737813082459,-500.0,0.00017397,2]
[350360517,1737813082470,-500.0,0.00017397,2]
[350360518,1737813082479,-500.0,0.00017397,2]
[350360519,1737813082489,-2953.97,0.00017397,2]
[350360520,1737813082498,-500.0,0.00017397,2]
[350360521,1737813082508,-500.0,0.00017397,2]
[350360522,1737813082518,-3034.26,0.00017397,2]
[350360523,1737813082527,-1373.5,0.00017397,2]
[350360524,1737813082537,-1530.59,0.00017397,2]
[350360525,1737813082547,-500.0,0.00017397,2]
[350360526,1737813082557,-500.0,0.00017397,2]
[350360527,1737813082566,-1726.4,0.00017397,2]
[350360528,1737813082576,-500.0,0.00017397,2]
[350360529,1737813082586,-500.0,0.00017397,2]
[350360530,1737813082595,-798.84,0.00017397,2]
[350360531,1737813082604,-3013.3,0.00017397,2]
[350360532,1737813082613,-626.75,0.00017397,2]
[350360533,1737813082622,-185.93514779,0.00017397,2]
[350360534,1737813082631,-166.05850695,0.00017397,2]
[350360535,1737813082640,-739.22,0.00017397,2]
[350360536,1737813082649,-159.58703794,0.00017397,2]
[350360537,1737813082659,-1860.59,0.00017397,2]
[350360538,1737813082668,-1888.84,0.00017397,2]
[350360539,1737813082677,-500.0,0.00017397,2]
[350360540,1737813082686,-666.1,0.00017397,2]
[350360541,1737813082695,-500.0,0.00017397,2]
[350360542,1737813082704,-500.0,0.00017397,2]
[350360543,1737813082714,-690.64,0.00017397,2]
[350360544,1737813082723,-2315.92,0.00017397,2]
[350360545,1737813082733,-500.0,0.00017397,2]
[350360546,1737813082742,-1623.95,0.00017397,2]
[350360547,1737813082752,-500.0,0.00017397,2]
[350360548,1737813082761,-500.0,0.00017397,2]
[350360549,1737813082770,-500.0,0.00017397,2]
[350360550,1737813082780,-983.3,0.00017397,2]
[350360551,1737813082789,-500.0,0.00017397,2]
[350360552,1737813082798,-500.0,0.00017397,2]
[350360553,1737813082809,-500.0,0.00017397,2]
[350360554,1737813082818,-500.0,0.00017397,2]
[350360555,1737813082827,-628.41,0.00017397,2]
[350360556,1737813082836,-547.24,0.00017397,2]
[350360557,1737813082846,-500.0,0.00017397,2]
[350360558,1737813082855,-500.0,0.00017397,2]
[350360559,1737813082864,-500.0,0.00017397,2]
[350360560,1737813082874,-500.0,0.00017397,2]
[350360561,1737813082884,-500.0,0.00017397,2]
[350360562,1737813082897,-760.92,0.00017397,2]
[350360563,1737813082906,-500.0,0.00017397,2]
[350360564,1737813082916,-1375.09,0.00017397,2]
[350360565,1737813082926,-772.61,0.00017397,2]
[350360566,1737813082937,-500.0,0.00017397,2]
[350360567,1737813082947,-876.13,0.00017397,2]
[350360568,1737813082957,-537.57,0.00017397,2]
[350360569,1737813082966,-500.0,0.00017397,2]
[350360570,1737813082976,-568.9,0.00017397,2]
[350360571,1737813082986,-2395.84,0.00017397,2]
[350360572,1737813082995,-1063.43,0.00017397,2]
[350360573,1737813083005,-500.0,0.00017397,2]
[350360574,1737813083014,-500.0,0.00017397,2]
[350360575,1737813083023,-500.0,0.00017397,2]
[350360576,1737813083033,-2460.08,0.00017397,2]
[350360577,1737813083042,-500.0,0.00017397,2]
[350360578,1737813083051,-689.97,0.00017397,2]
[350360579,1737813083060,-740.0,0.00017397,2]
[350360580,1737813083069,-500.0,0.00017397,2]
[350360581,1737813083078,-500.0,0.00017397,2]
[350360582,1737813083087,-500.0,0.00017397,2]
[350360583,1737813083096,-500.0,0.00017397,2]
[350360584,1737813083105,-667.16,0.00017397,2]
[350360585,1737813083114,-500.0,0.00017397,2]
[350360586,1737813083123,-706.71,0.00017397,2]
[350360587,1737813083132,-500.0,0.00017397,2]
[350360588,1737813083142,-1416.08,0.00017397,2]
[350360589,1737813083150,-1131.23,0.00017397,2]
[350360590,1737813083160,-800.38,0.00017397,2]
[350360591,1737813083169,-500.0,0.00017397,2]
[350360592,1737813083178,-500.0,0.00017397,2]
[350360593,1737813083187,-500.0,0.00017397,2]
[350360594,1737813083197,-567.66763793,0.00017397,2]
[350360595,1737813083206,-487.66188829,0.00017397,2]
[350360596,1737813083216,-842.21,0.00017397,2]
[350360597,1737813083225,-500.0,0.00017397,2]
[350360598,1737813083234,-599.36,0.00017397,2]
[350360599,1737813083244,-500.0,0.00017397,2]
[350360600,1737813083253,-500.0,0.00017397,2]
[350360601,1737813083263,-500.0,0.00017397,2]
[350360602,1737813083272,-732.46,0.00017397,2]
[350360603,1737813083281,-1308.92,0.00017397,2]
[350360604,1737813083291,-198.70816303,0.00017397,2]
[350360605,1737813083300,-1000.0,0.00017397,2]
[350360606,1737813083310,-2319.73,0.00017397,2]
[350360607,1737813083319,-500.0,0.00017397,2]
[350360608,1737813083329,-687.95,0.00017397,2]
[350360609,1737813083339,-500.0,0.00017397,2]
[350360610,1737813083349,-500.0,0.00017397,2]
[350360611,1737813083359,-924.66,0.00017397,2]
[350360612,1737813083369,-500.0,0.00017397,2]
[350360613,1737813083378,-500.0,0.00017397,2]
[350360614,1737813083388,-500.0,0.00017397,2]
[350360615,1737813083397,-1116.95,0.00017397,2]
[350360616,1737813083407,-500.0,0.00017397,2]
[350360617,1737813083417,-500.0,0.00017397,2]
[350360618,1737813083428,-528.29,0.00017397,2]
[350360619,1737813083438,-517.43,0.00017397,2]
[350360620,1737813083448,-500.0,0.00017397,2]
[350360621,1737813083458,-500.0,0.00017397,2]
[350360622,1737813083467,-621.51,0.00017397,2]
[350360623,1737813083477,-534.07,0.00017397,2]
[350360624,1737813083487,-500.0,0.00017397,2]
[350360625,1737813083496,-500.0,0.00017397,2]
[350360626,1737813083506,-500.0,0.00017397,2]
[350360627,1737813083515,-500.0,0.00017397,2]
[350360628,1737813083524,-591.54,0.00017397,2]
[350360629,1737813083534,-815.81,0.00017397,2]
[350360630,1737813083543,-500.0,0.00017397,2]
[350360631,1737813083553,-700.4,0.00017397,2]
[350360632,1737813083562,-500.0,0.00017397,2]
[350360633,1737813083571,-500.0,0.00017397,2]
[350360634,1737813083581,-1642.0,0.000174,2]
[350360635,1737813083591,-944.4,0.0001743,2]
[350360636,1737813083600,-1117.85,0.00017533,2]
[350360637,1737813083609,-500.0,0.00017534,2]
[350360638,1737813083619,-500.0,0.00017534,2]
[350360639,1737813083628,-500.0,0.00017534,2]
[350360640,1737813083637,-500.0,0.00017534,2]
[350360641,1737813083647,-500.0,0.00017534,2]
[350360642,1737813083658,-547.974536,0.00017534,2]
[350360643,1737813083667,-500.0,0.00017534,2]
[350360644,1737813083677,-602.38,0.00017534,2]
[350360645,1737813083686,-376.945656,0.00017534,2]
[350360646,1737813083697,-500.0,0.00017534,2]
[350360647,1737813083707,-500.0,0.00017534,2]
[350360648,1737813083716,-500.0,0.00017534,2]
[350360649,1737813083724,-500.0,0.00017534,2]
[350360650,1737813083733,-500.0,0.00017534,2]
[350360651,1737813083743,-500.0,0.00017534,2]
[350360652,1737813083752,-500.0,0.00017534,2]
[350360653,1737813083761,-500.0,0.00017534,2]
[350360654,1737813083770,-500.0,0.00017534,2]
[350360655,1737813083780,-500.0,0.00017534,2]
[350360656,1737813083789,-500.0,0.00017534,2]
[350360657,1737813083798,-500.0,0.00017534,2]
[350360658,1737813083807,-500.0,0.00017534,2]
[350360659,1737813083818,-500.0,0.00017534,2]
[350360660,1737813083827,-500.0,0.00017534,2]
[350360661,1737813083836,-500.0,0.00017534,2]
[350360662,1737813083846,-463.46660821,0.00017534,2]
[350360663,1737813083855,-500.0,0.00017534,2]
[350360664,1737813083864,-500.0,0.00017534,2]
[350360665,1737813083873,-500.0,0.00017534,2]
[350360666,1737813083882,-435.16,0.00017534,2]
[350360667,1737813083896,-500.0,0.00017534,2]
[350360668,1737813083905,-500.0,0.00017534,2]
[350360669,1737813083915,-500.0,0.00017534,2]
[350360670,1737813083924,-442.97766772,0.00017534,2]
[350360671,1737813083934,-500.0,0.00017534,2]
[350360672,1737813083945,-500.0,0.00017534,2]
[350360673,1737813083955,-500.0,0.00017534,2]
[350360674,1737813083964,-500.0,0.00017534,2]
[350360675,1737813083974,-500.0,0.00017534,2]
[350360676,1737813083983,-500.0,0.00017534,2]
[350360677,1737813083992,-500.0,0.00017534,2]
[350360678,1737813084002,-551.6220885,0.00017534,2]
[350360679,1737813084012,-500.0,0.00017534,2]
[350360680,1737813084021,-500.0,0.00017534,2]
[350360681,1737813084031,-500.0,0.00017534,2]
[350360682,1737813084040,-500.0,0.00017534,2]
[350360683,1737813084050,-500.0,0.00017534,2]
[350360684,1737813084059,-500.0,0.00017534,2]
[350360685,1737813084069,-500.0,0.00017534,2]
[350360686,1737813084078,-500.0,0.00017534,2]
[350360687,1737813084087,-500.0,0.00017534,2]
[350360688,1737813084096,-500.0,0.00017534,2]
[350360689,1737813084106,-500.0,0.00017534,2]
[350360690,1737813084115,-571.14,0.00017534,2]
[350360691,1737813084124,-500.0,0.00017534,2]
[350360692,1737813084133,-500.0,0.00017534,2]
[350360693,1737813084143,-500.0,0.00017534,2]
[350360694,1737813084152,-500.0,0.00017534,2]
[350360695,1737813084161,-500.0,0.00017534,2]
[350360696,1737813084170,-500.0,0.00017534,2]
[350360697,1737813084179,-500.0,0.00017534,2]
[350360698,1737813084189,-500.0,0.00017534,2]
[350360699,1737813084199,-619.2440868,0.00017534,2]
[350360700,1737813084208,-500.0,0.00017534,2]
[350360701,1737813084218,-533.46,0.00017534,2]
[350360702,1737813084227,-500.0,0.00017534,2]
[350360703,1737813084237,-500.0,0.00017534,2]
[350360704,1737813084246,-533.48,0.00017534,2]
[350360705,1737813084255,-500.0,0.00017534,2]
[350360706,1737813084264,-500.0,0.00017534,2]
[350360707,1737813084274,-500.0,0.00017534,2]
[350360708,1737813084283,-500.0,0.00017534,2]
[350360709,1737813084292,-500.0,0.00017534,2]
[350360710,1737813084301,-500.0,0.00017534,2]
[350360711,1737813084311,-500.0,0.00017534,2]
[350360712,1737813084321,-500.0,0.00017534,2]
[350360713,1737813084330,-500.0,0.00017534,2]
[350360714,1737813084339,-500.0,0.00017534,2]
[350360715,1737813084349,-500.0,0.00017534,2]
[350360716,1737813084358,-500.0,0.00017534,2]
[350360717,1737813084367,-500.0,0.00017534,2]
[350360718,1737813084512,-500.0,0.00017534,2]
[350360719,1737813084523,-500.0,0.00017534,2]
[350360720,1737813084533,-500.0,0.00017534,2]
[350360721,1737813084542,-500.0,0.00017534,2]
[350360722,1737813084552,-500.0,0.00017534,2]
[350360723,1737813084561,-500.0,0.00017534,2]
[350360724,1737813084571,-500.0,0.00017534,2]
[350360725,1737813084580,-307.48105913,0.00017534,2]
[350360726,1737813084590,-612.6911928,0.00017534,2]
[350360727,1737813084599,-500.0,0.00017534,2]
[350360728,1737813084609,-500.0,0.00017534,2]
[350360729,1737813084618,-500.0,0.00017534,2]
[350360730,1737813084629,-256.57561732,0.00017534,2]
[350360731,1737813084638,-500.0,0.00017534,2]
[350360732,1737813084647,-500.0,0.00017534,2]
[350360733,1737813084657,-500.0,0.00017534,2]
[350360734,1737813084667,-500.0,0.00017534,2]
[350360735,1737813084676,-500.0,0.00017534,2]
[350360736,1737813084685,-500.0,0.00017534,2]
[350360737,1737813084695,-500.0,0.00017534,2]
[350360738,1737813084704,-500.0,0.00017534,2]
[350360739,1737813084714,-1889.73,0.00017534,2]
[350360740,1737813084723,-500.0,0.00017534,2]
[350360741,1737813084732,-665.28,0.00017534,2]
[350360742,1737813084742,-789.58,0.00017534,2]
[350360743,1737813084751,-500.0,0.00017534,2]
[350360744,1737813084759,-500.0,0.00017534,2]
[350360745,1737813084769,-500.0,0.00017534,2]
[350360746,1737813084778,-500.0,0.00017534,2]
[350360747,1737813084787,-500.0,0.00017534,2]
[350360748,1737813084797,-1330.19,0.00017534,2]
[350360749,1737813084807,-500.0,0.00017534,2]
[350360750,1737813084815,-500.0,0.00017534,2]
[350360751,1737813084825,-500.0,0.00017534,2]
[350360752,1737813084835,-500.0,0.00017534,2]
[350360753,1737813084844,-744.86,0.00017534,2]
[350360754,1737813084854,-500.0,0.00017534,2]
[350360755,1737813084864,-500.0,0.00017534,2]
[350360756,1737813084874,-500.0,0.00017534,2]
[350360757,1737813084883,-770.24,0.00017534,2]
[350360758,1737813084895,-500.0,0.00017534,2]
[350360759,1737813084905,-1531.48,0.00017534,2]